Cogmind - Beta 10.2 @@@ ROGUE MODE // 2021.06.11 @ 22:14:31 Player: Finestep Result: Self-destructed Performance ------------- Evolutions (3) 1500 Regions Visited (10) 2000 Robots Destroyed (210) 1050 Value Destroyed (5561) 5561 Prototype IDs (40) 800 Alien Tech Used (0) 0 Bonus (2377) 2377 TOTAL SCORE: 13288 Bonus ------- High Alert Combat Kills 1065 Follower Combat Kills 133 Entered Garrisons 400 Used RIF Installer 1000 Aligned with FarCom 300 Friendly Fire -521 Cogmind --------- Core Integrity 523/700 Matter 290/300 Energy 64/100 System Corruption 0% Temperature Cool (0) Movement Flying (29) Location -7/Factory Parts ------- > --- POWER (1) -------- (None) > --- PROPULSION (4) --- Improved VTOL Module Improved VTOL Module Improved VTOL Module > --- UTILITY (6) ------ Small Storage Unit Advanced Signal Interpreter Hacking Suite Makeshift Hacking Suite Relay Coupler [Sentry] (12) > --- WEAPON (2) ------- Remote Datajack Makeshift Sword > --- INVENTORY (6) ---- Improved VTOL Module Hacking Suite Relay Coupler [NC] (31) Relay Coupler [Sentry] (24) Cooled Particle Cannon Advanced EMP Blaster Peak State ------------ > --- POWER ------------ Light Angular Momentum Engine > --- PROPULSION ------- Improved VTOL Module Improved VTOL Module Improved VTOL Module Improved VTOL Module > --- UTILITY ---------- Small Storage Unit Advanced Sensor Array Advanced Signal Interpreter Hacking Suite Makeshift Hacking Suite Relay Coupler [Sentry] > --- WEAPON ----------- Cooled Particle Cannon Remote Datajack > --- INVENTORY -------- Improved VTOL Module Hacking Suite Relay Coupler [NC] Relay Coupler [Sentry] Advanced EMP Blaster Makeshift Sword [Rating: 50] Favorites ----------- Power Ion Engine Engine Ion Engine Power Core Reinforced Fission Core Propulsion Light Treads Treads Light Treads Leg Aluminum Leg Flight Unit Improved VTOL Module Utility Large Storage Unit Device Advanced Sensor Array Storage Large Storage Unit Processor Advanced Signal Interpreter Hackware Makeshift Hacking Suite Protection Hardened Medium Armor Plating Weapon Light Assault Rifle Energy Gun Small Laser Energy Cannon Advanced Beam Cannon Ballistic Gun Light Assault Rifle Ballistic Cannon Light Cannon Launcher Rocket Launcher Special Weapon Remote Datajack Slashing Weapon Makeshift Sword Special Melee Weapon Improved Datajack Build | -11 -10 -9 -9 -9 -8 -8 -8 -8 -8 -7 ------- Run | Scr Mat Mat Min Exi Min Mat Gar Mat Gar Fac Slots Evolved 6 | . . 2 . . . 2 . . . 2 Power . | . . . . . . . . . . . Propulsion 2 | . . 1 . . . 1 . . . . Utility 4 | . . 1 . . . 1 . . . 2 Weapon . | . . . . . . . . . . . Parts Attached 177 | 7 13 25 3 21 . 52 11 10 8 27 Power 11 | 1 1 2 . 1 . 2 . 1 . 3 Engine 9 | 1 1 2 . 1 . 2 . . . 2 Core 2 | . . . . . . . . 1 . 1 Reactor . | . . . . . . . . . . . Propulsion 48 | 2 1 13 . 2 . 18 2 3 2 5 Treads 41 | 2 1 13 . 2 . 17 2 3 1 . Leg 1 | . . . . . . . . . 1 . Wheel . | . . . . . . . . . . . Hover . | . . . . . . . . . . . Flight 6 | . . . . . . 1 . . . 5 Utility 38 | 2 2 1 . 10 . 8 3 1 1 10 Device 3 | . . . . 2 . . . . . 1 Storage 14 | 2 2 1 . 6 . 1 . 1 . 1 Processor 2 | . . . . . . 1 . . . 1 Hackware 5 | . . . . . . . 1 . . 4 Protection 14 | . . . . 2 . 6 2 . 1 3 Artifact . | . . . . . . . . . . . Weapon 80 | 2 9 9 3 8 . 24 6 5 5 9 Energy Gun 13 | 1 1 2 . . . 2 1 3 3 . Energy Cannon 6 | . 2 2 . . . . . . . 2 Ballistic Gun 37 | 1 3 4 3 5 . 15 3 2 1 . Ballistic Cannon 3 | . 2 1 . . . . . . . . Launcher 9 | . . . . 2 . 4 1 . 1 1 Special Weapon 1 | . . . . . . . . . . 1 Impact Weapon . | . . . . . . . . . . . Slashing Weapon 8 | . . . . 1 . 3 . . . 4 Piercing Weapon . | . . . . . . . . . . . Special Melee Weapon 3 | . 1 . . . . . 1 . . 1 Unidentified Prototypes 12 | . . 5 . 2 . 2 . 2 . 1 Parts Lost 23 | . 2 . . 1 . 6 3 2 6 3 Power 2 | . 1 . . . . . . . . 1 Propulsion 11 | . . . . 1 . 4 1 1 3 1 Utility 4 | . . . . . . 1 1 . 1 1 Weapon 6 | . 1 . . . . 1 1 1 2 . Highest Loss Streak 5 | . 1 . . 1 . 3 2 2 5 3 Average Slot Usage (%) 98 | . 100 99 100 97 100 99 99 98 85 98 Engine 9 | . 14 10 11 10 11 9 9 4 . 6 Treads 30 | . 28 32 33 33 33 35 35 35 20 . Flight 2 | . . . . . . . . . . 29 Storage 27 | . 28 33 33 27 33 27 27 27 27 4 Hackware 1 | . . . . . . . . . . 21 Protection 4 | . . . . 5 . 9 8 9 8 3 Energy Gun 2 | . 9 . . . . . 4 10 8 . Energy Cannon 2 | . 5 8 . . . . . . . . Ballistic Gun 11 | . 7 5 22 14 22 17 12 6 9 . Ballistic Cannon 2 | . 4 7 . . . . . . . . Naked Turns . | . . . . . . . . . . . Heaviest Build 101 | 14 43 52 49 59 58 89 89 98 101 28 Greatest Support 91 | 40 40 63 63 66 66 91 80 80 80 24 Greatest Overweight (x) 4 | . 1 . . 1 . 2 1 1 4 1 Average Overweight (x) . | . . . . . . . . 1 2 . Largest Inventory Capacity 24 | 8 16 20 20 22 22 24 24 24 24 24 Average Capacity 18 | 6 15 19 20 17 22 23 24 24 24 5 Most Carried 24 | 4 16 20 20 22 22 24 24 24 24 24 Average Carried 18 | 3 13 19 20 17 22 22 23 23 23 5 Final Capacity 24 | 8 16 20 20 22 22 24 24 24 24 6 Final Carried 24 | 4 16 20 20 22 22 24 24 24 24 6 Class Distribution -------------------- 61% | Hauler-Mutant 21% | Mutant 7% | Bothacker-Mutant 3% | Bothacker-Sprinter 3% | Scavenger-Mutant 3% | Hacker-Sprinter Dominant Class ---------------- Mutant | -10/Materials Hauler-Mutant | -9/Materials Hauler-Mutant | -9/Mines Hauler-Mutant | -9/Exiles Hauler-Mutant | -8/Mines Hauler-Mutant | -8/Materials Hauler-Mutant | -8/Garrison Bothacker-Mutant | -8/Materials Bothacker-Mutant | -8/Garrison Bothacker-Sprinter | -7/Factory Resources | -11 -10 -9 -9 -9 -8 -8 -8 -8 -8 -7 ----------- Run | Scr Mat Mat Min Exi Min Mat Gar Mat Gar Fac Matter Collected 5011 | 312 687 561 117 480 . 1896 275 217 166 300 Remotely . | . . . . . . . . . . . Salvage Created 7646 | 191 705 1207 130 400 . 2688 568 1009 215 533 Parts 503 | 14 54 70 11 55 . 168 33 54 20 24 Haulers Intercepted 21 | . 2 6 . . . 6 . 3 . 4 Recyclers Shooed 8 | . . 3 . . . . . 4 . 1 Parts Field Recycled . | . . . . . . . . . . . Retrieved Matter . | . . . . . . . . . . . Parts Self-Destructed . | . . . . . . . . . . . Prevented . | . . . . . . . . . . . Kills | -11 -10 -9 -9 -9 -8 -8 -8 -8 -8 -7 ------- Run | Scr Mat Mat Min Exi Min Mat Gar Mat Gar Fac Combat Hostiles Destroyed 127 | . 14 15 5 6 . 42 19 13 12 1 Melee 1 | . . . . . . . . . . 1 Guns 86 | . 9 4 5 1 . 36 13 12 6 . Cannons 16 | . 5 11 . . . . . . . . AOE 24 | . . . . 5 . 6 6 1 6 . Classes Destroyed 18 | 2 6 1 1 3 . 5 . . . . Worker 14 | . 3 2 . . . 6 . 1 . 2 Builder 6 | . . . . . . 5 . 1 . . Tunneler 5 | 5 . . . . . . . . . . Hauler 21 | . 2 6 . . . 6 . 3 . 4 Recycler 14 | 1 1 2 . . . 6 . 2 . 2 Operator 4 | . 2 . . . . 1 . . . 1 Turret 1 | . . . . 1 . . . . . . Watcher 13 | . 3 3 . . . 5 . . . 2 Swarmer 31 | . 6 . 3 . . 3 7 3 9 . Grunt 56 | . 8 6 1 . . 20 11 7 3 . Brawler 5 | . . . 1 . . 3 . 1 . . Duelist 5 | . . . . . . 4 . 1 . . Protector 1 | . . . . . . 1 . . . . Sentry 21 | . . 9 . . . 9 1 1 . 1 Hunter 1 | . . . . . . 1 . . . . Programmer 1 | . . . . . . 1 . . . . Zionite 8 | . . . . 8 . . . . . . Assembled 7 | . . . . 7 . . . . . . Best Kill Streak 11 | 4 4 3 3 7 . 11 8 6 11 5 Combat Bots Only 11 | . 4 3 3 5 . 6 8 4 11 1 Max Kills in Single Turn 4 | 1 2 1 1 3 . 2 3 2 4 1 Gunslinging 1 | . 1 . . . . 1 1 1 . . Exploded 4 | . . . . 3 . 2 3 1 4 . Melee 1 | . . . . . . . . . . 1 Uniques/NPCs Destroyed 4 | . . . . 4 . . . . . . 8R-AWN (-9/Exiles) EX-DEC (-9/Exiles) EX-HEX (-9/Exiles) EX-BIN (-9/Exiles) Combat | -11 -10 -9 -9 -9 -8 -8 -8 -8 -8 -7 -------- Run | Scr Mat Mat Min Exi Min Mat Gar Mat Gar Fac Damage Taken 7654 | . 560 514 164 574 18 2668 1062 921 671 502 Core 958 | . 59 98 . 63 18 237 58 139 109 177 Absorbed by Shields . | . . . . . . . . . . . Core Remaining (%) 58 | 100 76 . . . 55 . . . 1 . Volleys Fired 562 | 14 64 82 16 63 . 188 35 68 17 15 Largest 2 | 2 2 2 2 2 . 2 2 2 2 1 Hottest 106 | 60 95 103 40 46 . 90 68 106 75 36 Shots Fired 1088 | 28 126 161 32 158 . 362 65 110 31 15 Gun 915 | 28 88 75 32 140 . 352 62 110 28 . Cannon 128 | . 38 86 . . . . . . . 4 Launcher 35 | . . . . 18 . 10 3 . 3 1 Special 10 | . . . . . . . . . . 10 Kinetic 833 | 14 67 119 32 140 . 342 49 56 14 . Thermal 143 | 14 54 42 . . . . . 15 14 4 Explosive 34 | . . . . 18 . 10 3 . 3 . Electromagnetic 68 | . 5 . . . . 10 13 39 . 1 Robot Hit Streak 32 | 10 9 11 9 23 . 21 32 20 10 6 Robot Miss Streak 4 | 2 3 4 3 4 . 4 1 4 4 1 Penetration Max . | . . . . . . . . . . . Secondary Targets 14 | . 1 . 1 . . 6 2 3 1 . Max Gunslinging Chain 1 | . 1 . 1 . . 1 1 1 1 . Autonomous 51 | . . . . 51 . . . . . . Shots Hit Robots 757 | 21 72 94 21 100 . 261 57 78 19 34 Core Hits 383 | 7 36 42 10 45 . 136 37 40 17 13 Critical Hits 12 | . . 3 . 1 . 4 1 1 . 2 Critical Kills 8 | . . 2 . . . 3 . 1 . 2 Critical Parts Destroyed 3 | . . 1 . . . 1 1 . . . Melee Attacks 70 | . . . . 7 . 4 3 . . 56 Impact . | . . . . . . . . . . . Slashing 67 | . . . . 7 . 4 . . . 56 Piercing . | . . . . . . . . . . . Sneak Attacks 12 | . . . . . . . . . . 12 Combat Hostiles 3 | . . . . . . . . . . 3 Follow-up Attacks . | . . . . . . . . . . . Damage Inflicted 16759 | 261 927 1349 178 2859 . 5549 1501 1441 748 1946 Guns 10321 | 261 643 400 178 2080 . 4276 898 1233 352 . Cannons 1233 | . 284 949 . . . . . . . . Explosions 3328 | . . . . 779 . 1273 603 208 396 69 Melee 1877 | . . . . . . . . . . 1877 Ramming . | . . . . . . . . . . . Kinetic 9202 | 126 450 735 178 2080 . 4180 671 629 153 . Thermal 1771 | 135 454 614 . . . . 61 308 199 . Explosive 2990 | . . . . 779 . 1273 542 . 396 . Electromagnetic 919 | . 23 . . . . 96 227 504 . 69 Impact . | . . . . . . . . . . . Slashing 1877 | . . . . . . . . . . 1877 Piercing . | . . . . . . . . . . . Highest Corruption 3 | . . 3 3 3 3 1 1 1 1 . Average Corruption 2 | . . 3 3 3 3 1 1 1 1 . Corruption Purged . | . . . . . . . . . . . Effects 84 | . . 25 10 38 4 . 5 1 1 . Message Errors 21 | . . 6 1 10 2 . 2 . . . Matter Fused 27 | . . 9 4 13 1 . . . . . Heat Flow Errors 12 | . . 3 1 7 1 . . . . . Energy Discharges 6 | . . 1 2 2 . . 1 . . . Data Loss (minor) 8 | . . 3 1 3 . . . . 1 . Targeting Errors 8 | . . 3 1 2 . . 1 1 . . Weapon Failures 2 | . . . . 1 . . 1 . . . Overload Shots . | . . . . . . . . . . . Overflow Damage 278 | . 5 . . 26 . 58 11 . 10 168 Projectiles 5 | . 5 . . . . . . . . . Explosions 105 | . . . . 26 . 58 11 . 10 . Melee 168 | . . . . . . . . . . 168 Knockbacks 4 | . 1 3 . . . . . . . . Impact . | . . . . . . . . . . . Kinetic 4 | . 1 3 . . . . . . . . Secondary . | . . . . . . . . . . . Self-Inflicted Damage 296 | . . . . . . 152 13 114 17 . Shots 7 | . . . . . . 3 1 2 1 . Rammed 1 | . 1 . . . . . . . . . Targets Rammed 1 | . 1 . . . . . . . . . Kicked . | . . . . . . . . . . . Crushed . | . . . . . . . . . . . Highest Temperature 476 | . 243 229 95 239 181 476 39 360 91 21 Average Temperature 52 | . 44 61 26 64 94 34 17 86 53 9 Received Heat Transfer 2526 | . 177 186 48 . 9 1053 486 243 270 54 Effects 3 | . . . . . . 1 . 2 . . Shutdowns 1 | . . . . . . 1 . . . . Interference 1 | . . . . . . . . 1 . . Short Circuit 1 | . . . . . . . . 1 . . Siege Activations . | . . . . . . . . . . . Robots Corrupted . | . . . . . . . . . . . Combat Hostiles . | . . . . . . . . . . . Parts Fried 3 | . . . . . . 1 1 1 . . Impact Corruptions . | . . . . . . . . . . . Robots Melted . | . . . . . . . . . . . Combat Hostiles . | . . . . . . . . . . . Parts Melted 4 | 2 . 2 . . . . . . . . Heat Transferred 3174 | 300 1009 1110 . . . . 50 335 370 . Parts Sabotaged . | . . . . . . . . . . . Parts Stolen . | . . . . . . . . . . . Parts Stripped . | . . . . . . . . . . . Power Chain Reactions 4 | . . . . . . . 1 3 . . Missiles Intercepted . | . . . . . . . . . . . Alert | -11 -10 -9 -9 -9 -8 -8 -8 -8 -8 -7 ------- Run | Scr Mat Mat Min Exi Min Mat Gar Mat Gar Fac Peak Influence 1271 | 30 187 274 206 . . 1063 1271 881 889 1019 Initial 670 | . 19 25 106 . . . 670 619 499 466 Average 346 | 12 89 112 87 . . 525 1004 746 740 473 Maximum Alert Level 4 | . . 1 1 . . 3 4 3 3 3 Low Security (%) 54 | 100 100 82 99 . 100 22 . . . 9 Level 1 12 | . . 17 . . . 25 . . . 39 Level 2 9 | . . . . . . 14 11 31 40 20 Level 3 20 | . . . . . . 37 37 68 59 30 Level 4 3 | . . . . . . . 51 . . . Level 5 . | . . . . . . . . . . . High Security . | . . . . . . . . . . . Max Security . | . . . . . . . . . . . Squads Dispatched 22 | . 5 1 . . . 9 . 5 . 2 Investigation 4 | . 3 . . . . . . . . 1 Extermination . | . . . . . . . . . . . Reinforcement 9 | . 2 1 . . . 5 . . . 1 Assault 3 | . . . . . . 3 . . . . Garrison 6 | . . . . . . 1 . 5 . . Intercept . | . . . . . . . . . . . Construction Impeded 1 | . . . . . . 1 . . . . Haulers Reinforced 1 | . . . . . . . . . . 1 Stealth | -11 -10 -9 -9 -9 -8 -8 -8 -8 -8 -7 --------- Run | Scr Mat Mat Min Exi Min Mat Gar Mat Gar Fac Distress Signals 7 | . . 2 . . . 4 . . . 1 Communications Jammed . | . . . . . . . . . . . Distress Signals . | . . . . . . . . . . . Times Spotted 248 | . 23 26 5 13 2 76 30 17 16 40 Peak Tracking Total 12 | . 3 4 3 7 3 7 10 5 12 10 Tactical Retreats 23 | . . 1 . 2 . 6 3 2 2 7 Traps | -11 -10 -9 -9 -9 -8 -8 -8 -8 -8 -7 ------- Run | Scr Mat Mat Min Exi Min Mat Gar Mat Gar Fac Traps Triggered 12 | . 2 1 . . . . 5 . 1 3 Indirectly . | . . . . . . . . . . . Trap Hack Attempts 60 | . 60 . . . . . . . . . Triggered . | . . . . . . . . . . . Disarmed 2 | . 2 . . . . . . . . . Reprogrammed . | . . . . . . . . . . . Reused . | . . . . . . . . . . . Traps Extracted . | . . . . . . . . . . . Installed . | . . . . . . . . . . . Triggered 1 | . . . 1 . . . . . . . Machines | -11 -10 -9 -9 -9 -8 -8 -8 -8 -8 -7 ---------- Run | Scr Mat Mat Min Exi Min Mat Gar Mat Gar Fac Machines Disabled 20 | . . 1 . 12 . 3 2 1 1 . Max in Single Turn 2 | . . 1 . 2 . 2 1 1 1 . Garrison Access 1 | . . . . . . . . . . 1 Garrison Relay 3 | . . . . . . . 2 . 1 . Machines Sabotaged . | . . . . . . . . . . . Garrisons Compromised . | . . . . . . . . . . . Overloaded Fab Kills . | . . . . . . . . . . . Fab Network Shutdowns 1 | . . . . . . . . . . 1 Hacking | -11 -10 -9 -9 -9 -8 -8 -8 -8 -8 -7 --------- Run | Scr Mat Mat Min Exi Min Mat Gar Mat Gar Fac Machines Accessed 38 | . 7 8 . 2 1 6 . 3 . 11 Terminals 24 | . 5 7 . . 1 4 . 1 . 6 Fabricators 1 | . . . . . . . . . . 1 Repair Stations 3 | . . 1 . . . 1 . . . 1 Recycling Units 3 | . 2 . . . . . . . . 1 Scanalyzers 1 | . . . . . . . . 1 . . Garrison Access 4 | . . . . . . 1 . 1 . 2 Total Hacks 121 | . 17 31 . 6 1 19 . 11 . 36 Successful 72 | . 11 14 . 6 . 11 . 5 . 25 Failed 48 | . 6 16 . . 1 8 . 6 . 11 Catastrophic 7 | . . 5 . . 1 . . 1 . . Database Lockouts 1 | . . 1 . . . . . . . . Manual 74 | . 16 18 . 1 1 10 . 8 . 20 Terminals 82 | . 14 25 . . 1 14 . 4 . 24 Fabricators 5 | . . . . . . . . . . 5 Repair Stations 10 | . . 6 . . . 2 . . . 2 Recycling Units 5 | . 3 . . . . . . . . 2 Scanalyzers 2 | . . . . . . . . 2 . . Garrison Access 11 | . . . . . . 3 . 5 . 3 Terminal Hacks 34 | . 4 7 . 6 . 6 . 1 . 10 Record 5 | . . . . 5 . . . . . . Part Schematic 5 | . 1 1 . . . . . . . 3 Robot Schematic 2 | . 1 1 . . . . . . . . Robot Analysis 3 | . . . . . . 3 . . . . Branch Access Points 2 | . . 1 . . . . . . . 1 Terminal Index 3 | . 1 . . . . 1 . . . 1 Unreport Threat 3 | . . . . . . . . 1 . 2 Locate Traps 4 | . . 2 . . . 1 . . . 1 Patrol Status 1 | . . . . . . . . . . 1 Transport Status 1 | . . 1 . . . . . . . . Hauler Manifests 4 | . 1 1 . . . 1 . . . 1 EX-Prototype ID Bank 1 | . . . . 1 . . . . . . Fabricator Hacks 3 | . . . . . . . . . . 3 Load Schematic 1 | . . . . . . . . . . 1 Build 2 | . . . . . . . . . . 2 Repair Station Hacks 8 | . . 4 . . . 2 . . . 2 Scan Component 4 | . . 2 . . . 1 . . . 1 Repair 4 | . . 2 . . . 1 . . . 1 Recycling Unit Hacks 2 | . 1 . . . . . . . . 1 Retrieve Components 2 | . 1 . . . . . . . . 1 Scanalyzer 1 | . . . . . . . . 1 . . Insert Component 1 | . . . . . . . . 1 . . Garrison Access Hacks 3 | . . . . . . 1 . 1 . 1 Unlock Access 2 | . . . . . . 1 . 1 . . Seal Access 1 | . . . . . . . . . . 1 Unauthorized Hacks 21 | . 6 3 . . . 2 . 2 . 8 Terminals 13 | . 4 3 . . . 1 . . . 5 Track 5 | . 1 2 . . . 1 . . . 1 Assimilate 1 | . 1 . . . . . . . . . Botnet 5 | . 1 1 . . . . . . . 3 Operators 2 | . 1 . . . . . . . . 1 Fabricators 1 | . . . . . . . . . . 1 Prioritize 1 | . . . . . . . . . . 1 Repair Stations . | . . . . . . . . . . . Recycling Units 3 | . 2 . . . . . . . . 1 Tunnel 3 | . 2 . . . . . . . . 1 Scanalyzers . | . . . . . . . . . . . Garrison Access 4 | . . . . . . 1 . 2 . 1 Restock 1 | . . . . . . 1 . . . . Reprogram 3 | . . . . . . . . 2 . 1 Data Cores Recovered 1 | . . . . . . . . . . 1 Used 1 | . . . . . . . . . . 1 Hacking Detections 28 | . 4 7 . . 1 6 . 2 . 8 Full Trace Events 1 | . . . . . . 1 . . . . Feedback Events . | . . . . . . . . . . . Feedback Blocked . | . . . . . . . . . . . Robot Schematics Acquired 2 | . 1 1 . . . . . . . . Robots Built . | . . . . . . . . . . . Matter . | . . . . . . . . . . . Time . | . . . . . . . . . . . Total Robot Build Rating . | . . . . . . . . . . . Part Schematics Acquired 4 | . 1 1 . . . . . . . 2 Parts Built 2 | . . . . . . . . . . 2 Matter 292 | . . . . . . . . . . 292 Time 109 | . . . . . . . . . . 109 Total Part Build Rating 6 | . . . . . . . . . . 6 Parts Repaired 4 | . . 2 . . . 1 . . . 1 Time 137 | . . 58 . . . 19 . . . 60 Parts Recycled . | . . . . . . . . . . . Recycled Matter . | . . . . . . . . . . . Retrieved Matter . | . . . . . . . . . . . Retrieved Components 13 | . 10 . . . . . . . . 3 Parts Scanalyzed . | . . . . . . . . . . . Part Schematics Acquired . | . . . . . . . . . . . Parts Damaged . | . . . . . . . . . . . Bothacking | -11 -10 -9 -9 -9 -8 -8 -8 -8 -8 -7 ------------ Run | Scr Mat Mat Min Exi Min Mat Gar Mat Gar Fac Used RIF Installer 2 | . . . . . . . 1 . 1 . Robot Detection 1 | . . . . . . . . . 1 . Robots Hacked 12 | . . . . . . . 3 . . 9 Non-combat 6 | . . . . . . . . . . 6 Combat 6 | . . . . . . . 3 . . 3 Robot Hacks Applied 12 | . . . . . . . 3 . . 9 find_chute 1 | . . . . . . . . . . 1 drop_inventory 4 | . . . . . . . . . . 4 summon_haulers 1 | . . . . . . . . . . 1 reboot_system 1 | . . . . . . . . . . 1 go_dormant 2 | . . . . . . . . . . 2 overwrite_iff 2 | . . . . . . . 2 . . . streamctrl_high 1 | . . . . . . . 1 . . . Relay Couplers Released 16 | . . . . . . 4 8 . 4 . Machine Destruction 12 | . . . . . . . 8 . 4 . Programmers 4 | . . . . . . 4 . . . . Attached 3 | . . . . . . . 1 . . 2 Robots Rewired . | . . . . . . . . . . . Allies Hacked . | . . . . . . . . . . . Hacks Repelled . | . . . . . . . . . . . Allies | -11 -10 -9 -9 -9 -8 -8 -8 -8 -8 -7 -------- Run | Scr Mat Mat Min Exi Min Mat Gar Mat Gar Fac Total Allies 5 | . . . . . . . 3 2 . . Largest Group 3 | . . . . . . . 3 2 2 . Highest-Rated Group 48 | . . . . . . . 48 30 30 . Highest-Rated Ally 16 | . . . . . . . 16 15 15 . Total Orders . | . . . . . . . . . . . Ally Attacks 32 | . . . . . . . 19 . 13 . Total Damage 534 | . . . . . . . 281 . 253 . Kills 7 | . . . . . . . 3 . 4 . Allies Corrupted . | . . . . . . . . . . . Allies Melted . | . . . . . . . . . . . Intel | -11 -10 -9 -9 -9 -8 -8 -8 -8 -8 -7 ------- Run | Scr Mat Mat Min Exi Min Mat Gar Mat Gar Fac Robot Analysis Total 3 | . . . . . . 3 . . . . Derelict Logs Recovered 2 | . . . 2 . . . . . . . Drone Launches . | . . . . . . . . . . . Drone Recoveries . | . . . . . . . . . . . Exploration | -11 -10 -9 -9 -9 -8 -8 -8 -8 -8 -7 ------------- Run | Scr Mat Mat Min Exi Min Mat Gar Mat Gar Fac Turns Passed 11465 | 171 1760 1974 717 2190 255 2023 586 617 393 779 Spaces Moved 6663 | 77 845 1003 420 1217 160 791 248 218 159 1525 Core 7 | 7 . . . . . . . . . . Treads 5131 | 70 845 1003 420 1217 160 791 248 218 159 . Legs . | . . . . . . . . . . . Wheels . | . . . . . . . . . . . Hover . | . . . . . . . . . . . Flight 1525 | . . . . . . . . . . 1525 Fastest Speed 26 | 50 160 160 160 160 160 152 162 180 180 26 Average Speed 133 | 150 168 160 160 160 160 165 181 181 209 26 Slowest Speed 240 | 160 180 160 160 180 160 197 182 183 240 96 Overloaded Moves . | . . . . . . . . . . . Propulsion Burnouts . | . . . . . . . . . . . Robots Hopped 14 | . . . . . . . . . . 14 Cave-ins Triggered . | . . . . . . . . . . . Exploration Rate (%) 56 | 7 95 71 87 91 39 75 52 18 43 39 Regions Visited 10 Branch Regions 3 Pre-discovered Areas 6 | . 2 . 2 1 . . . . . 1 Known Exits Taken 3 | . . 1 . . . 1 . 1 . . Unknown Exits Taken 5 | 1 1 . 1 1 1 . . . . . Scrap Searched 1 | . . . 1 . . . . . . . Spaces Dug 29 | . . . . 1 . 11 1 . . 16 Terrain Destroyed 228 | . . . . 52 . 101 17 22 20 16 Melee 18 | . . . . 1 . 4 . . . 13 Projectile 29 | . . . . 25 . . . . 1 3 AOE 181 | . . . . 26 . 97 17 22 19 . Terrain Rammed . | . . . . . . . . . . . Walls Destroyed . | . . . . . . . . . . . Machines Disabled . | . . . . . . . . . . . Actions | -11 -10 -9 -9 -9 -8 -8 -8 -8 -8 -7 --------- Run | Scr Mat Mat Min Exi Min Mat Gar Mat Gar Fac Total 8178 | 101 1057 1249 441 1363 159 1142 315 331 190 1830 Wait 394 | . 48 76 . . . 57 1 26 . 186 Move 6627 | 76 844 1002 419 1216 159 790 246 217 157 1501 Hop 10 | . . . . . . . . . . 10 Pick Up 115 | 4 17 27 . 25 . 21 6 3 3 9 Fast Attach 59 | 7 3 9 . 9 . 12 . 4 3 12 Attach 45 | . 2 5 . 7 . 11 4 2 4 10 Detach 4 | . 1 1 . . . . . . 1 1 Swap 73 | . 8 11 3 5 . 29 7 4 1 5 Drop 146 | . 9 36 3 31 . 30 3 7 2 25 Fire 562 | 14 64 82 16 63 . 188 35 68 17 15 Melee 70 | . . . . 7 . 4 3 . . 56 Ram . | . . . . . . . . . . . Kick . | . . . . . . . . . . . Crush 1 | . 1 . . . . . . . . . Escape Stasis 12 | . . . . . . . 10 . 2 . Rewire . | . . . . . . . . . . . Trap 60 | . 60 . . . . . . . . . Miscellaneous . | . . . . . . . . . . . Route ------- -11/Scrapyard -10/Materials (discovered 5 exits: *Mat x3 / [*Min x2]) -9/Materials (discovered 6 exits: *Mat x3 / *Min / *Sto x2) -9/Mines (discovered 3 exits: *Mat / *Exi / [*Zio]) -9/Exiles -8/Mines -8/Materials (discovered 2 exits: *Fac / Gar) -8/Garrison -8/Materials (discovered 2 exits: *Fac / Gar) -8/Garrison -7/Factory (discovered 3 exits: [*Fac] / Low x2) History --------- Turn | Location | Event 14 | -11/Scrapyard | Discovered new exit (range 15) 172 | -11/Scrapyard | Entered Materials 306 | -10/Materials | Build established: Mutant 348 | -10/Materials | Discovered new exit (range 5) 413 | -10/Materials | Discovered new exit (range 15) 1064 | -10/Materials | Discovered new exit (range 16) 1190 | -10/Materials | Discovered new exit (range 11) 1505 | -10/Materials | Discovered new exit (range 11) 1932 | -10/Materials | Entered another Materials area 1932 | -9/Materials | Evolved 2 slots: Propulsion x1, Utility x1 2019 | -9/Materials | Discovered new exit (range 15) 2239 | -9/Materials | Build established: Hauler-Mutant 2348 | -9/Materials | Repaired Lgt. Treads 2592 | -9/Materials | Discovered new exit (range 3) 3031 | -9/Materials | Identified exit to Mines 3031 | -9/Materials | Identified exit to Storage 3139 | -9/Materials | Repaired Imp. Treads 3443 | -9/Materials | Discovered new exit (range 3) 3674 | -9/Materials | Central database locked down 3688 | -9/Materials | Discovered new exit (range 10) 3906 | -9/Materials | Entered Mines 3907 | -9/Mines | A Derelict revealed a hidden shortcut to a safe place 3915 | -9/Mines | Assembled infested the area 4383 | -9/Mines | Learned location of Zion (-7) 4538 | -9/Mines | Discovered new exit (range 8) 4617 | -9/Mines | Deemed a non-threat by the Exiles lab entrance 4617 | -9/Mines | Discovered new exit (range 5) 4623 | -9/Mines | Entered Exiles 4772 | -9/Exiles | Met 8R-AWN 4797 | -9/Exiles | Met EX-HEX 4858 | -9/Exiles | Met EX-DEC 5073 | -9/Exiles | Met EX-BIN 5179 | -9/Exiles | Aligned with FarCom system 5181 | -9/Exiles | Given EX-Vault access code 5218 | -9/Exiles | Opened EX-Vault 5244 | -9/Exiles | Found AWS/Gauss 5280 | -9/Exiles | Warned to stay clear of 0b10 Research branches 5481 | -9/Exiles | Attacked by the Exiles 5541 | -9/Exiles | Destroyed 8R-AWN 5745 | -9/Exiles | Found Longsword +1 5766 | -9/Exiles | Build established: Mutant 6088 | -9/Exiles | Found Prototype Processor 6306 | -9/Exiles | Build established: Hauler-Mutant 6414 | -9/Exiles | Destroyed EX-DEC 6566 | -9/Exiles | Destroyed EX-HEX 6593 | -9/Exiles | Destroyed EX-BIN 6797 | -9/Exiles | Discovered new exit (range 10) 6813 | -9/Exiles | Entered Mines 7005 | -8/Mines | Discovered new exit (range 14) 7068 | -8/Mines | Entered Materials 7068 | -8/Materials | Evolved 2 slots: Propulsion x1, Utility x1 7603 | -8/Materials | Discovered new exit (range 10) 8265 | -8/Materials | Lost 3 parts (2n1w) 8268 | -8/Materials | First assault squad dispatched 8605 | -8/Materials | Repaired Arm. Treads 8952 | -8/Materials | Garrison activated, responded to threat 9025 | -8/Materials | Identified exit to Garrison 9091 | -8/Materials | Entered Garrison 9101 | -8/Garrison | Installed Relay Interface Framework 9153 | -8/Garrison | Triggered checkpoint 9189 | -8/Garrison | Garrison Relay disabled 9323 | -8/Garrison | Destroyed 8 combat bots 9336 | -8/Garrison | Triggered checkpoint 9354 | -8/Garrison | Core integrity fell below 50% 9363 | -8/Garrison | Triggered checkpoint 9465 | -8/Garrison | Discovered new exit (range 9) 9538 | -8/Garrison | Triggered checkpoint 9576 | -8/Garrison | Garrison Relay disabled 9677 | -8/Garrison | Entered Materials 9793 | -8/Materials | Identified Exp. Targeting Computer 9870 | -8/Materials | Garrison activated, responded to threat 9890 | -8/Materials | Build established: Bothacker-Mutant 10205 | -8/Materials | Discovered new exit (range 16) 10255 | -8/Materials | Identified exit to Garrison 10294 | -8/Materials | Entered Garrison 10294 | -8/Garrison | Accompanied by 2 allies 10303 | -8/Garrison | Expanded RIF knowledge: Robot Detection 10348 | -8/Garrison | Triggered checkpoint 10352 | -8/Garrison | Core integrity fell below 20% 10373 | -8/Garrison | Garrison Relay disabled 10446 | -8/Garrison | Triggered checkpoint 10503 | -8/Garrison | Lost 5 parts (3n1u1w) 10511 | -8/Garrison | Destroyed 11 combat bots 10668 | -8/Garrison | Discovered new exit (range 8) 10687 | -8/Garrison | Entered Factory 10687 | -7/Factory | Evolved 2 slots: Utility x2 10926 | -7/Factory | Identified exit to Lower Caves 10981 | -7/Factory | Build established: Bothacker-Sprinter 11064 | -7/Factory | Fabricated Hacking Suite (x1) 11103 | -7/Factory | Fabricated Hacking Suite? 11187 | -7/Factory | Local fabrication network quarantined 11221 | -7/Factory | Discovered new exit (range 14) 11277 | -7/Factory | Repaired Imp. VTOL Module? 11434 | -7/Factory | Build established: Hacker-Sprinter 11466 | -7/Factory | Self-destructed Last Messages --------------- 11258_ A-02 Transporter suffers critical hit. 11258_ A-02 Transporter destroyed. 11260_ Acquired 30 matter. 11277_ >> REPAIR: Completed Imp. VTOL Module? 11296_ W-25 Informer suffers critical hit. 11296_ W-25 Informer destroyed. 11299_ Acquired Imp. VTOL Module. 11377_ Detecting nearby Garrison Access. 11380_ Connecting with Garrison Access... >>Trojan(Reprogram) Trojan loaded successfully. Testing... Dispatch confirmation system compromised. 11385_ Connecting with Garrison Access... 11394_ Acquired 20 matter. 11433_ Triggered Ambush Trap. 11433_ G-47 Trooper emerges from a hatch in the floor. 11462_ Lgt. Angular Momentum Engine destroyed. 11464_ Adv. Sensor Array destroyed. 11465_ Imp. VTOL Module destroyed. Map ----- +----------------------------------------------------+ | ?????????????????????????????????????????????????? | | ?????????????????????????????????????????????????? | | ????????????????????????????????????????????????? | | ????????????????????????????????????????????????? | | ???????????????????????????????????????????????? | | ##########+###########?????????????????????????? | | ###########???????????????? | | ???????????????? | | ??????????????? | | ?????????????????? | | #####?????????????????????? | | #### #########/#######?????????????????????? | | ???# #??# #?????????????????????? | | #### #??# #?????????????????????? | | #??# """ """ #?????????????????????? | | #??# """ """ #?????????????????????? | | #??# """ """ #?????????????????????? | | ## #??# #?????????????????????? | | ?# #??# """ """s !#?????????????????????? | | ?# #??# """ """ #?????????????????????? | | ?# #??# """ """ !#?????????????????????? | | ?# #??# #?????o???????????????? | | ?# #??# #?????????????????????? | | ?# #??# #?????????????????????? | | ?# #??##+#####+##s##??????^??????????????? | | ?# ##### #??????#@#??????????????????????? | | ?# ???# #??????????????????????? | | ?# ???#s#??????????????????????? | | ?# """""" """ ????# #??????????????????????? | | + """""" "Y???????# #??????????????????????? | | # """""" ???????# #??????????????????????? | | + """""" ????# #??????????????????????? | | # ? #???# #??????????????????????? | | # """""" """""? #???# #??????????????????????? | | ?# """""" """""" #???# #??????????????????????? | | ?# """""" """""" #???# #??????????????????????? | | ?# """""" """""" #???#s#??????????????????????? | | ?# #??? ?????????????????????? | | ?# #??? #????????????????????? | | ?# #?? #????????????????????? | | ## ### ????????????????????? | | ???????????????????? | | ???????????????????? | | ??????????????????? | | ??????????????????? | | ############ %! ??????????????????? | | #??????????# !! "?????????????????? | | #??????????# !! "?????????????????? | | #??????????# "?????????????????? | | +############ ??????????????????? | +----------------------------------------------------+ Best States ------------- Heat Dissipation 54 Energy Generation 19 Energy Capacity 310 Matter Stores 300 Matter Capacity 300 Sight Range 16 Robot Scan Range 16 Terrain Scan Density 10 Armor Coverage 375 Resistance: KI 20 Evasion (%) 64 Recoil Reduction 4 Offensive Hacking 21 Relay Coupler Types 46 Relay Coupler Value 2 Item Schematics ----------------- Hcp. Storage Unit | -10/Materials | Hacked Lrg. Storage Unit | -9/Materials | Hacked Hacking Suite | -7/Factory | Hacked Med. Storage Unit | -7/Factory | Hacked Robot Schematics ------------------ M-13 Machinist | -10/Materials | Hacked O-16 Technician | -9/Materials | Hacked Fabricated ------------ Hacking Suite | x1 | -7/Factory Hacking Suite | x1 | -7/Factory Alien Tech Used ----------------- None Achievements -------------- None Challenges ------------ None Game ------ Seed RecyclingGyrokineticBattery Manual? 0 Play Time 01:26:23 Cumulative 574.1 hours Start 2021.06.11 @ 20:47:14 End 2021.06.11 @ 22:14:31 Sessions 3 Manual Loads 0 Difficulty Rogue Special Mode None Game No. 355 Rogue 355 Adventurer 0 Explorer 0 Win Type - Total 6 Types 4/0/1/0/1/0/0/0/0 Lore% 88 Gallery% 89 Achievement% 71 Wizard Run 0 Options --------- ASCII 0 Keyboard 0 Movement Mouse Keybinds 1 Fullscreen 2 Font 24/Smallcaps Map View 76x50 Tactical HUD 1 Map Filters NONE Filters NONE Steam 1 RUN: 040cd612-3de1-4365-803c-0bf35bfbdaf7